Cogmind - Beta 14 @@@ ROGUE MODE // 2025.01.05 @ 18:17:37 Player: abnormality Result: Destroyed by G-47 Trooper with Particle Gun Performance ------------- Evolutions (2) 1000 Regions Visited (4) 800 Robots Destroyed (39) 195 Value Destroyed (827) 827 Prototype IDs (3) 60 Alien Tech Used (0) 0 Bonus (54) 54 TOTAL SCORE: 2936 Bonus ------- Follower Combat Kills 54 Cogmind --------- Core Integrity 0/550 Matter 195/300 Energy 100/100 System Corruption 0% Temperature Cool (9) Movement Core (350) Ox6 Location -8/Materials Parts ------- > --- POWER (2) -------- (None) > --- PROPULSION (4) --- (None) > --- UTILITY (3) ------ Large Storage Unit > --- WEAPON (2) ------- (None) > --- INVENTORY (15) --- Medium Storage Unit Particle Gun Assault Rifle Gauss Cannon Peak State ------------ > --- POWER ------------ Light Ion Engine Light Nuclear Core > --- PROPULSION ------- Light Treads Light Treads Improved Treads Improved Treads > --- UTILITY ---------- Large Storage Unit Seismic Detector Light Armor Plating > --- WEAPON ----------- Gauss Cannon Gauss Cannon > --- INVENTORY -------- Light Ion Engine Light Treads Light Treads Medium Storage Unit Beam Rifle Particle Gun Assault Rifle Light Assault Rifle EMP Trap EMP Trap EMP Trap EMP Trap [Rating: 22] Favorites ----------- Power Light Ion Engine Engine Light Ion Engine Power Core Light Nuclear Core Propulsion Light Treads Treads Light Treads Leg Aluminum Leg Utility Seismic Detector Device Seismic Detector Storage Large Storage Unit Protection Light Armor Plating Weapon Assault Rifle Energy Gun Beam Rifle Ballistic Gun Assault Rifle Ballistic Cannon Gauss Cannon Build | -11 -10 -9 -9 -8 ------- Run | Yrd Mat Mat Min Mat Slots Evolved 4 | . . 2 . 2 Power 1 | . . . . 1 Propulsion 2 | . . 2 . . Utility 1 | . . . . 1 Weapon . | . . . . . Parts Attached 36 | 8 1 8 7 12 Power 5 | 1 . 1 1 2 Engine 4 | 1 . 1 1 1 Core 1 | . . . . 1 Reactor . | . . . . . Propulsion 15 | 2 . 7 3 3 Treads 13 | . . 7 3 3 Leg 2 | 2 . . . . Wheel . | . . . . . Hover . | . . . . . Flight . | . . . . . Utility 6 | 2 1 . 2 1 Device 2 | 1 . . 1 . Storage 3 | 1 1 . 1 . Processor . | . . . . . Hackware . | . . . . . Protection 1 | . . . . 1 Artifact . | . . . . . Weapon 10 | 3 . . 1 6 Energy Gun 3 | 1 . . 1 1 Energy Cannon . | . . . . . Ballistic Gun 4 | 2 . . . 2 Ballistic Cannon 3 | . . . . 3 Launcher . | . . . . . Special Weapon . | . . . . . Impact Weapon . | . . . . . Slashing Weapon . | . . . . . Piercing Weapon . | . . . . . Special Melee Weapon . | . . . . . Unidentified Prototypes . | . . . . . Parts Lost 20 | . . 2 3 15 Power 5 | . . 1 1 3 Propulsion 8 | . . 1 . 7 Utility 3 | . . . 1 2 Weapon 4 | . . . 1 3 Highest Loss Streak 9 | . . 1 2 9 To Critical Strikes . | . . . . . Average Slot Usage (%) 90 | . 100 83 98 80 Engine 10 | . 14 11 10 8 Core 1 | . . . . 6 Treads 27 | . . 14 43 28 Leg 6 | . 28 14 . . Device 10 | . 14 11 10 8 Storage 10 | . 14 11 11 9 Energy Gun 5 | . . . 10 6 Ballistic Gun 14 | . 28 22 11 7 Peak Build Rating 22 | 7 7 13 13 22 Average Rating 11 | 5 7 8 12 15 On Entrance 8 | . 7 7 13 13 Naked Turns . | . . . . . Heaviest Build 46 | 13 18 18 29 46 Greatest Support 89 | 20 20 89 86 86 Greatest Overweight (x) 9 | . . 1 . 9 Average Overweight (x) . | . . . . . Largest Inventory Capacity 15 | 8 10 10 15 15 Average Capacity 12 | 7 9 10 14 15 Most Carried 13 | 5 7 10 11 13 Average Carried 8 | 1 5 7 10 9 Final Capacity 15 | 8 10 10 15 15 Final Carried 9 | 2 7 9 9 4 Class Distribution -------------------- 53% | Mutant 46% | Scavenger-Mutant Dominant Class ---------------- Mutant | -10/Materials Mutant | -9/Materials Scavenger-Mutant | -9/Mines Scavenger-Mutant | -8/Materials Resources | -11 -10 -9 -9 -8 ----------- Run | Yrd Mat Mat Min Mat Matter Collected 957 | 326 54 225 162 190 Remotely . | . . . . . Salvage Created 1090 | 185 96 287 199 323 Parts 90 | 18 12 28 17 15 Haulers Intercepted . | . . . . . Recyclers Shooed . | . . . . . Parts Field Recycled . | . . . . . Retrieved Matter . | . . . . . Parts Self-Destructed . | . . . . . Prevented . | . . . . . Kills | -11 -10 -9 -9 -8 ------- Run | Yrd Mat Mat Min Mat Combat Hostiles Destroyed 26 | . 3 6 7 10 Guns 25 | . 3 6 7 9 Cannons 1 | . . . . 1 Classes Destroyed 8 | 2 2 2 2 . Tunneler 6 | 5 . . 1 . Recycler 1 | 1 . . . . Operator 1 | . . 1 . . Watcher 5 | . 2 3 . . Swarmer 14 | . 3 3 4 4 Grunt 7 | . . . 2 5 Duelist 1 | . . . 1 . Sentry 4 | . . 3 . 1 Best Kill Streak 4 | 4 3 4 4 4 Combat Bots Only 4 | . 3 3 4 4 Max Kills in Single Turn 1 | 1 1 1 1 1 Gunslinging . | . . . . . Exploded . | . . . . . Melee . | . . . . . Uniques/NPCs Destroyed . | . . . . . Combat | -11 -10 -9 -9 -8 -------- Run | Yrd Mat Mat Min Mat Hostile Shots Fired 237 | . 17 43 49 128 Missed 48 | . 3 6 15 24 Damage Taken 2968 | . 115 363 460 2030 Core 662 | . 23 51 29 559 Absorbed by Shields . | . . . . . Core Remaining (%) 90 | 100 90 . 80 . Volleys Fired 123 | 13 10 27 19 54 Largest 2 | 2 2 2 2 2 Hottest 96 | 40 40 40 76 96 Shots Fired 218 | 23 20 54 37 84 Gun 198 | 23 20 54 37 64 Cannon 20 | . . . . 20 Launcher . | . . . . . Special . | . . . . . Kinetic 178 | 20 20 54 22 62 Thermal 37 | . . . 15 22 Explosive . | . . . . . Electromagnetic 3 | 3 . . . . Robot Hit Streak 10 | 9 3 10 8 6 Robot Miss Streak 5 | 2 3 4 3 5 Penetration Max . | . . . . . Secondary Targets 3 | . 1 . 1 1 Max Gunslinging Chain 1 | . 1 . 1 1 Shots Hit Robots 128 | 14 7 32 24 51 Core Hits 59 | 7 5 16 12 19 Critical Kills . | . . . . . Critical Parts Destroyed . | . . . . . Critical Strikes 7 | . . . 2 5 Burn 5 | . . . 2 3 Blast 2 | . . . . 2 Melee Attacks . | . . . . . Impact . | . . . . . Slashing . | . . . . . Piercing . | . . . . . Sneak Attacks . | . . . . . Combat Hostiles . | . . . . . Follow-up Attacks . | . . . . . Damage Inflicted 1846 | 162 96 365 296 927 Guns 1480 | 162 96 365 296 561 Cannons 365 | . . . . 365 Explosions . | . . . . . Melee . | . . . . . Ramming 1 | . . . . 1 Kinetic 1547 | 122 96 365 210 754 Thermal 258 | . . . 86 172 Explosive . | . . . . . Electromagnetic 40 | 40 . . . . Impact . | . . . . . Slashing . | . . . . . Piercing . | . . . . . Highest Corruption . | . . . . . Average Corruption . | . . . . . Corruption Purged . | . . . . . Corruption Blocked . | . . . . . Overload Shots . | . . . . . Overflow Damage . | . . . . . Projectiles . | . . . . . Explosions . | . . . . . Melee . | . . . . . Knockbacks 3 | . . . . 3 Impact . | . . . . . Kinetic 2 | . . . . 2 Secondary 1 | . . . . 1 Self-Inflicted Damage . | . . . . . Shots . | . . . . . Rammed 2 | . . . . 2 Targets Rammed 2 | . . . . 2 Kicked . | . . . . . Crushed . | . . . . . Highest Temperature 493 | . . . 66 493 Average Temperature 145 | . . . 29 159 Received Heat Transfer 879 | . . 45 78 756 Effects 8 | . . . . 8 Shutdowns 3 | . . . . 3 Energy Bleed 3 | . . . . 3 Matter Decay 1 | . . . . 1 Short Circuit 1 | . . . . 1 Siege Activations . | . . . . . Robots Corrupted . | . . . . . Combat Hostiles . | . . . . . Parts Fried 1 | 1 . . . . Impact Corruptions . | . . . . . Robots Melted . | . . . . . Combat Hostiles . | . . . . . Parts Melted 1 | . . . . 1 Heat Transferred 1036 | . . . 370 666 Parts Sabotaged . | . . . . . Parts Stolen . | . . . . . Parts Stripped . | . . . . . Power Chain Reactions . | . . . . . Alert | -11 -10 -9 -9 -8 ------- Run | Yrd Mat Mat Min Mat Peak Influence 290 | 30 118 245 93 290 Initial 49 | . 19 49 33 34 Average 83 | 13 79 108 55 119 Maximum Alert Level 1 | . . 1 . 1 Low Security (%) 94 | 100 100 93 100 83 Level 1 5 | . . 6 . 16 Level 2 . | . . . . . Level 3 . | . . . . . Level 4 . | . . . . . Level 5 . | . . . . . High Security . | . . . . . Max Security . | . . . . . Squads Dispatched 6 | . 2 1 . 3 Investigation 2 | . 1 1 . . Extermination . | . . . . . Reinforcement 3 | . 1 . . 2 Assault . | . . . . . Garrison 1 | . . . . 1 Intercept . | . . . . . Searches Triggered . | . . . . . Construction Impeded . | . . . . . Haulers Reinforced . | . . . . . Active Scanning Responses . | . . . . . Cargo Convoy Interrupts . | . . . . . Stealth | -11 -10 -9 -9 -8 --------- Run | Yrd Mat Mat Min Mat Distress Signals 2 | . . 2 . . Communications Jammed . | . . . . . Distress Signals . | . . . . . Times Spotted 50 | . 7 13 10 20 Peak Tracking Total 5 | . 3 5 4 5 Tactical Retreats 3 | . . . 1 2 Traps | -11 -10 -9 -9 -8 ------- Run | Yrd Mat Mat Min Mat Traps Triggered . | . . . . . Indirectly . | . . . . . Trap Hack Attempts . | . . . . . Triggered . | . . . . . Disarmed . | . . . . . Reprogrammed . | . . . . . Reused . | . . . . . Traps Extracted . | . . . . . Installed . | . . . . . Triggered . | . . . . . Most Traps Carried 4 | . . . 4 4 Machines | -11 -10 -9 -9 -8 ---------- Run | Yrd Mat Mat Min Mat Machines Disabled 1 | . . . . 1 Max in Single Turn 1 | . . . . 1 Garrison Access 1 | . . . . 1 Machines Repaired . | . . . . . Machines Dismantled . | . . . . . Machines Sabotaged . | . . . . . Overloaded Fab Kills . | . . . . . Hacking | -11 -10 -9 -9 -8 --------- Run | Yrd Mat Mat Min Mat Machines Accessed 7 | . 1 4 . 2 Terminals 6 | . 1 4 . 1 Fabricators . | . . . . . Repair Stations . | . . . . . Recycling Units . | . . . . . Scanalyzers . | . . . . . Garrison Access 1 | . . . . 1 Total Hacks 18 | . 3 11 . 4 Successful 8 | . . 6 . 2 Failed 10 | . 3 5 . 2 Catastrophic 3 | . 2 . . 1 Database Lockouts . | . . . . . Manual . | . . . . . Terminals 16 | . 3 11 . 2 Fabricators . | . . . . . Repair Stations . | . . . . . Recycling Units . | . . . . . Scanalyzers . | . . . . . Garrison Access 2 | . . . . 2 Terminal Hacks 7 | . . 6 . 1 Record 3 | . . 3 . . Prototype ID Bank 2 | . . 2 . . Alert Level 1 | . . 1 . . Maintenance Status 1 | . . . . 1 Fabricator Hacks . | . . . . . Repair Station Hacks . | . . . . . Recycling Unit Hacks . | . . . . . Scanalyzer . | . . . . . Garrison Access Hacks 1 | . . . . 1 Seal Access 1 | . . . . 1 Unauthorized Hacks . | . . . . . Terminals . | . . . . . Fabricators . | . . . . . Repair Stations . | . . . . . Recycling Units . | . . . . . Scanalyzers . | . . . . . Garrison Access . | . . . . . Data Cores Recovered 1 | . . 1 . . Used . | . . . . . Hacking Detections 6 | . 1 4 . 1 Full Trace Events 2 | . 1 1 . . Feedback Events . | . . . . . Feedback Blocked . | . . . . . Robot Schematics Acquired . | . . . . . Robots Built . | . . . . . Authchips . | . . . . . Time . | . . . . . Total Robot Build Rating . | . . . . . Part Schematics Acquired . | . . . . . Parts Built . | . . . . . Authchips . | . . . . . Time . | . . . . . Total Part Build Rating . | . . . . . Parts Repaired . | . . . . . Time . | . . . . . Parts Recycled . | . . . . . Recycled Matter . | . . . . . Retrieved Matter . | . . . . . Retrieved Components . | . . . . . Parts Scanalyzed . | . . . . . Part Schematics Acquired . | . . . . . Parts Damaged . | . . . . . Bothacking | -11 -10 -9 -9 -8 ------------ Run | Yrd Mat Mat Min Mat Used RIF Installer . | . . . . . Robots Hacked . | . . . . . Non-combat . | . . . . . Combat . | . . . . . Robot Hacks Applied . | . . . . . Relay Couplers Released . | . . . . . Fabnet Peak Effective % . | . . . . . Robots Rewired . | . . . . . Allies Hacked . | . . . . . Hacks Repelled . | . . . . . Allies | -11 -10 -9 -9 -8 -------- Run | Yrd Mat Mat Min Mat Total Allies 3 | . . . 3 . Largest Group 3 | . . . 3 2 Highest-Rated Group 40 | . . . 40 32 Highest-Rated Ally 16 | . . . 16 16 Total Orders . | . . . . . Ally Attacks 23 | . . . 15 8 Total Damage 173 | . . . 114 59 Kills 4 | . . . 3 1 Allies Corrupted . | . . . . . Allies Melted . | . . . . . Intel | -11 -10 -9 -9 -8 ------- Run | Yrd Mat Mat Min Mat Robot Analysis Total . | . . . . . Derelict Logs Recovered 1 | . . . 1 . Drone Launches . | . . . . . Drone Recoveries . | . . . . . Exploration | -11 -10 -9 -9 -8 ------------- Run | Yrd Mat Mat Min Mat Turns Passed 2470 | 137 194 666 909 564 Spaces Moved 1370 | 77 132 412 525 224 Core 14 | 11 . . . 3 Treads 874 | . . 128 525 221 Legs 482 | 66 132 284 . . Wheels . | . . . . . Hover . | . . . . . Flight . | . . . . . Fastest Speed 50 | 50 120 120 160 160 Average Speed 148 | 110 120 135 160 173 Slowest Speed 500 | 120 120 190 160 500 Overloaded Moves . | . . . . . Propulsion Burnouts . | . . . . . Robots Hopped . | . . . . . Cave-ins Triggered . | . . . . . Exploration Rate (%) 36 | 5 29 48 77 21 Regions Visited 4 Branch Regions 1 Pre-discovered Areas . | . . . . . Known Exits Taken . | . . . . . Unknown Exits Taken 4 | 1 1 1 1 . Scrap Searched 3 | . . . 3 . Spaces Dug . | . . . . . Terrain Destroyed 14 | . . . . 14 Melee . | . . . . . Projectile 14 | . . . . 14 AOE . | . . . . . Terrain Rammed . | . . . . . Walls Destroyed . | . . . . . Machines Disabled . | . . . . . Actions | -11 -10 -9 -9 -8 --------- Run | Yrd Mat Mat Min Mat Total 1596 | 106 147 470 557 316 Wait 16 | . . 4 . 12 Move 1366 | 76 131 411 524 224 Hop . | . . . . . Pick Up 40 | 9 5 13 6 7 Fast Attach . | . . . . . Attach 25 | 7 . 5 5 8 Detach . | . . . . . Swap 11 | 1 1 3 2 4 Drop 13 | . . 7 1 5 Fire 123 | 13 10 27 19 54 Melee . | . . . . . Ram 2 | . . . . 2 Kick . | . . . . . Crush . | . . . . . Escape Stasis . | . . . . . Rewire . | . . . . . Trap . | . . . . . Miscellaneous . | . . . . . Route ------- -11/Scrapyard -10/Materials -9/Materials -9/Mines -8/Materials (discovered 1 exit: Sto) History --------- Turn | Location | Event 6 | -11/Scrapyard | Discovered new exit (range 16) 138 | -11/Scrapyard | Entered Materials 290 | -10/Materials | Discovered new exit (range 16) 304 | -10/Materials | Build established: Mutant 332 | -10/Materials | Entered another Materials area 332 | -9/Materials | Evolved 2 slots: Propulsion x2 981 | -9/Materials | Discovered new exit (range 9) 998 | -9/Materials | Entered Mines 1073 | -9/Mines | Found a hidden stash of uninstalled traps 1229 | -9/Mines | Learned 2 Materials zone layouts 1307 | -9/Mines | Build established: Scavenger-Mutant 1815 | -9/Mines | Assisted by bots powering up and referring to "LRC-V3" 1895 | -9/Mines | Discovered new exit (range 6) 1907 | -9/Mines | Entered Materials 1907 | -8/Materials | Accompanied by 2 allies 1907 | -8/Materials | Evolved 2 slots: Power x1, Utility x1 1908 | -8/Materials | Identified exit to Storage 1949 | -8/Materials | Build established: Mutant 2216 | -8/Materials | Garrison activated, responded to threat 2388 | -8/Materials | Lost 9 parts (1p6n1u1w) 2425 | -8/Materials | Core integrity fell below 50% 2468 | -8/Materials | Core integrity fell below 20% 2471 | -8/Materials | Destroyed by G-47 Trooper with Particle Gun Last Messages --------------- area. 02431_ Slug penetrates Wall. 02437_ Lgt. Assault Rifle destroyed. 02438_ Dropped EMP Trap. 02447_ U-05 Engineer builds a Wall. 02450_ Lgt. Nuclear Core destroyed. 02450_ Material Compactor disabled. 02451_ U-05 Engineer builds a Wall. 02451_ Lgt. Ion Engine destroyed. 02453_ Acquired 16 matter. 02455_ Dropped EMP Trap. 02456_ Acquired 5 matter. 02457_ Gauss Cannon destroyed. 02459_ Acquired 3 matter. 02461_ Lgt. Treads destroyed. 02461_ Critical hit (Burn: +37). 02462_ Penetrated by Slug. 02462_ Seismic Detector destroyed. 02465_ Slammed into G-47 Trooper. 02468_ Slammed into H-61 Shepherd. Map ----- +----------------------------------------------------+ | ???????????????????# =% ####+## | | ??????????#############/### # | | ???????? [= ! | | ???????? # | | ???????? # | | ?????????+######+######/### # | | ?????????????? ???# ###/### | | ?????????????#?????# "" # | | ???????????????????# G" #???? | | ???????????????????# "" #?????? | | ???????????????????# #?????? | | ???????????????????# #?????? | | ????? ?????????????##+#####?????? | | ????? ??????##???#### #?????????? | | ????? ??????######### #?????????? | | ?####+#####??#**[[]]# #?????????? | | ?# =## #**[[ #=#?????????? | | ?# """ #?## % # ##????????? | | ?# """"" #### % # ##### "" ? | | ?# """"" + % % + ""S?? | | ?# """" ## ############## "" ? | | ?# """ g## ######??#"#????????? | | ?# # #???? ???????? | | ?#####+#/##%! #?????"" ??????? | | ????##%gH %u #??????" #?????? | | ???# # g@ +??????? #?????? | | ???#######; #????????#?????? | | ??????????# #??????????????? | | ??????????### ###??????????????? | | ????????????# #????????????????? | | ????????????# #????????????????? | | ????????????# #????????????????? | | ????????????? #????????????????? | | ????????????? ????????????????? | | ????????????? ?????????????????? | | ????????????????????????????????? | | ????????????????????????????????? | | ????????????????????????????????? | | ????????????????????????????????? | | ????????????????????????????????? | | ????????????????????????????????? | | ????????????????????????????????? | | ????????????????????????????????? | | ????????????????????????????????? | | ????????????????????????????????? | | ????????????????????????????????? | | ????????????????????????????????? | | ????????????????????????????????? | | ????????????????????????????????? | | ????????????????????????????????? | +----------------------------------------------------+ Best States ------------- Heat Dissipation 31 Energy Generation 19 Energy Capacity 185 Matter Stores 300 Matter Capacity 300 Sight Range 16 Terrain Scan Density 10 Armor Coverage 150 Evasion (%) 55 Recoil Reduction 4 Item Schematics ----------------- None Robot Schematics ------------------ None Fabricated ------------ Nothing Alien Tech Used ----------------- None Achievements -------------- None Challenges ------------ None Game ------ Seed TachyonPitchforkMapper Manual? 0 Play Time 00:18:56 Cumulative 14.6 hours Start 2025.01.05 @ 18:01:39 End 2025.01.05 @ 18:17:37 Sessions 1 Manual Loads 0 Difficulty Rogue Special Mode None Game No. 70 Rogue 70 Adventurer 0 Explorer 0 Win Type - Total 0 Types 0/0/0/0/0/0/0/0/0 Lore% 16 Gallery% 17 Achievement% 21 Wizard Run 0 Options --------- Layout 0 ASCII 0 Keyboard 0 Movement Mouse Keybinds 0 Fullscreen 1 Font 18/SmallcapsGlow Map View 38x25 Zoom Use 99% Tactical HUD 1 Map Filters NONE Filters NONE Steam 1 RUN: 3badc78e-6900-4c13-8850-bdd968991d85